Workbook

Sheet Sheet1
A1: Input: (user)
A2: p | B2: qmax | C2: R | D2: n1 | E2: n2
A3: 1 | B3: =Sheet3!I17*PI()/180 -> 1.134464014 | C3: =Sheet3!I12 -> 20 | D3: =Sheet3!H4 -> 1.3 | E3: =Sheet3!J4 -> 1.35
A4: Loop: (program)
A5: cos(q0) | B5: sin(q0) | C5: f0 | D5: cos(f0) | E5: sin(f0)
A6: 0.98 | B6: =SQRT(1-A6^2) -> 0.1989974874 | C6: 6 | D6: =COS(C6) -> 0.9601702867 | E6: =SIN(C6) -> -0.2794154982
A8: p' | C8: r0 | E8: rotation 1 | I8: r0' | K8: R2-y0'>0?
A9: =-B6 -> -0.1989974874 | C9: =Sheet3!H8 -> 0 | E9: =D6 -> 0.9601702867 | F9: =E6 -> -0.2794154982 | G9: 0 | I9: =MMULT(E9:G11,C9:C11) -> 0 | K9: =(C3^2-I10^2)/ABS(C3^2-I10^2) -> 1
A10: 0 | C10: 0 | E10: =-E6 -> 0.2794154982 | F10: =D6 -> 0.9601702867 | G10: 0 | I10: 0
A11: =-A6 -> -0.98 | C11: =Sheet3!J8 -> -10 | E11: 0 | F11: 0 | G11: 1 | I11: -10
A13: A | B13: B | C13: C | D13: B2-4AC>0? | E13: z1 | F13: x1
A14: =1/A6^2 -> 1.04123282 | B14: =-2*(I9*B6/A6+I11) -> 20 | C14: =I9^2+I10^2+I11^2-C3^2 -> -300 | D14: =K9*(B14^2-4*A14*C14)/ABS(B14^2-4*A14*C14) -> 1 | E14: =(SQRT(B14^2-4*A14*C14)-B14)/(2*A14) -> 9.898738679 | F14: =E14*B6/A6 -> 2.010024618
A16: r2
A17: =F14-I9 -> 2.010024618
A18: =-I10 -> 0 | C18: (x22+y22)1/2
A19: =E14-I11 -> 19.89873868 | C19: =SQRT(A17^2+A18^2) -> 2.010024618
A21: cos(q2) | B21: sin(q2) | C21: cos(f2) | D21: sin(f2)
A22: =A19/C3 -> 0.994936934 | B22: =C19/C3 -> 0.1005012309 | C22: =IF(C19<>0,A17/C19,1) -> 1 | D22: =IF(C19<>0,A18/C19,1) -> 0
A24: rotation 2 | E24: p1 | G24: rotation 3 | K24: p''
A25: =C22 -> 1 | B25: =D22 -> 0 | C25: 0 | E25: =MMULT(A25:C27,A9:A11) -> -0.1989974874 | G25: =A22 -> 0.994936934 | H25: 0 | I25: =-B22 -> -0.1005012309 | K25: =MMULT(G25:I27,E25:E27) -> -0.09949874371
A26: =-D22 -> 0 | B26: =C22 -> 1 | C26: 0 | E26: 0 | G26: 0 | H26: 1 | I26: 0 | K26: 0
A27: 0 | B27: 0 | C27: 1 | E27: -0.98 | G27: =B22 -> 0.1005012309 | H27: 0 | I27: =A22 -> 0.994936934 | K27: -0.9950376877
A29: (px''2+py''2)1/2 | B29: q3 | C29: q3' | D29: sin(qe) | E29: cos(f3) | F29: sin(f3)
A30: =SQRT(K25^2+K26^2) -> 0.09949874371 | B30: =ATAN(A30/ABS(K27)) -> 0.09966365237 | C30: =ASIN(D3*SIN(B30)/E3) -> 0.09596081276 | D30: =SIN(2*C30-B30) -> 0.0921271527 | E30: =IF(A30<>0,K25/A30,1) -> -1 | F30: =IF(A30<>0,K26/A30,1) -> 0
A32: pf'' | C32: inv rot 3 | G32: pf1 | I32: inv rot 2 | M32: pf'
A33: =D30*E30 -> -0.0921271527 | C33: =A22 -> 0.994936934 | D33: 0 | E33: =B22 -> 0.1005012309 | G33: =MMULT(C33:E35,A33:A35) -> -0.1917345312 | I33: =C22 -> 1 | J33: =-D22 -> 0 | K33: 0 | M33: =MMULT(I33:K35,G33:G35) -> -0.1917345312
A34: =D30*F30 -> 0 | C34: 0 | D34: 1 | E34: 0 | G34: 0 | I34: =D22 -> 0 | J34: =C22 -> 1 | K34: 0 | M34: 0
A35: =-COS(2*C30-B30) -> -0.9957472509 | C35: =-B22 -> -0.1005012309 | D35: 0 | E35: =A22 -> 0.994936934 | G35: -0.9814468246 | I35: 0 | J35: 0 | K35: 1 | M35: -0.9814468246
A37: inv rot 1 | E37: pf | G37: P | I37: Paverage
A38: =D6 -> 0.9601702867 | B38: =-E6 -> 0.2794154982 | C38: 0 | E38: =MMULT(A38:C40,M33:M35) -> -0.1840977998 | G38: =A9*D6-E38 -> -0.006973674723 | I38: 0.0005545434908
A39: =E6 -> -0.2794154982 | B39: =D6 -> 0.9601702867 | C39: 0 | E39: 0.05357359957 | G39: =A9*E6-E39 -> 0.002029382521 | I39: -2.307824491e-05
A40: 0 | B40: 0 | C40: 1 | E40: -0.9814468246 | G40: =A11-E40 -> 0.001446824607 | I40: -0.04087839198

Sheet Sheet2
A1: index | B1: angle | C1: x | D1: z(sphere) | F1: R | G1: x0 | H1: y0 | I1: z0
A2: 0 | B2: =A2*PI()/50 -> 0 | C2: =$F$2*SIN(B2) -> 0 | D2: =$F$2*COS(B2) -> 20 | F2: =Sheet3!I12 -> 20 | G2: =Sheet3!H8 -> 0 | H2: 0 | I2: =Sheet3!J8 -> -10
A3: =A2+1 -> 1 | B3: =A3*PI()/50 -> 0.06283185307 | C3: =$F$2*SIN(B3) -> 1.255810391 | D3: =$F$2*COS(B3) -> 19.96053457
A4: =A3+1 -> 2 | B4: 0.1256637061 | C4: 2.506664671 | D4: 19.84229403 | F4: Px | G4: Py | H4: Pz | I4: P
A5: 3 | B5: 0.1884955592 | C5: 3.747626292 | D5: 19.64574501 | F5: -6.958702128e-05 | G5: 6.436997319e-06 | H5: 0.01579285682 | I5: =SQRT(F5^2+G5^2+H5^2) -> 0.01579301144
A6: 4 | B6: 0.2513274123 | C6: 4.973797743 | D6: 19.37166322
A7: 5 | B7: 0.3141592654 | C7: 6.180339887 | D7: 19.02113033 | F7: Plots:
A8: 6 | B8: 0.3769911184 | C8: 7.362491054 | D8: 18.59552972 | F8: =-G2 -> 0 | G8: =-I2 -> 10 | H8: =-G2 -> 0 | I8: =-I2 -> 10
A9: 7 | B9: 0.4398229715 | C9: 8.515585831 | D9: 18.09654105 | F9: 80 | G9: =G8 +(F9-F8)/TAN(Sheet1!B3) -> 47.30461265 | H9: -80 | I9: =I8+(H8-H9)/TAN(Sheet1!B3) -> 47.30461265
A10: 8 | B10: 0.5026548246 | C10: 9.635073482 | D10: 17.5261336
A11: 9 | B11: 0.5654866776 | C11: 10.7165359 | D11: 16.88655851
A12: 10 | B12: 0.6283185307 | C12: 11.75570505 | D12: 16.18033989 | F12: 0 | G12: 0
A13: 11 | B13: 0.6911503838 | C13: 12.74847979 | D13: 15.41026486 | F13: =300*F5 -> -0.02087610639 | G13: =300*H5 -> 4.737857046
A14: 12 | B14: 0.7539822369 | C14: 13.69094212 | D14: 14.57937255
A15: 13 | B15: 0.8168140899 | C15: 14.57937255 | D15: 13.69094212 | F15: Sheet 2 contains the data necessary to construct the chart on sheet 3.
A16: 14 | B16: 0.879645943 | C16: 15.41026486 | D16: 12.74847979
A17: 15 | B17: 0.9424777961 | C17: 16.18033989 | D17: 11.75570505
A18: 16 | B18: 1.005309649 | C18: 16.88655851 | D18: 10.7165359
A19: 17 | B19: 1.068141502 | C19: 17.5261336 | D19: 9.635073482
A20: 18 | B20: 1.130973355 | C20: 18.09654105 | D20: 8.515585831
A21: 19 | B21: 1.193805208 | C21: 18.59552972 | D21: 7.362491054
A22: 20 | B22: 1.256637061 | C22: 19.02113033 | D22: 6.180339887
A23: 21 | B23: 1.319468915 | C23: 19.37166322 | D23: 4.973797743
A24: 22 | B24: 1.382300768 | C24: 19.64574501 | D24: 3.747626292
A25: 23 | B25: 1.445132621 | C25: 19.84229403 | D25: 2.506664671
A26: 24 | B26: 1.507964474 | C26: 19.96053457 | D26: 1.255810391
A27: 25 | B27: 1.570796327 | C27: 20 | D27: 1.225148455e-15
A28: 26 | B28: 1.63362818 | C28: 19.96053457 | D28: -1.255810391
A29: 27 | B29: 1.696460033 | C29: 19.84229403 | D29: -2.506664671
A30: 28 | B30: 1.759291886 | C30: 19.64574501 | D30: -3.747626292
A31: 29 | B31: 1.822123739 | C31: 19.37166322 | D31: -4.973797743
A32: 30 | B32: 1.884955592 | C32: 19.02113033 | D32: -6.180339887
A33: 31 | B33: 1.947787445 | C33: 18.59552972 | D33: -7.362491054
A34: 32 | B34: 2.010619298 | C34: 18.09654105 | D34: -8.515585831
A35: 33 | B35: 2.073451151 | C35: 17.5261336 | D35: -9.635073482
A36: 34 | B36: 2.136283004 | C36: 16.88655851 | D36: -10.7165359
A37: 35 | B37: 2.199114858 | C37: 16.18033989 | D37: -11.75570505
A38: 36 | B38: 2.261946711 | C38: 15.41026486 | D38: -12.74847979
A39: 37 | B39: 2.324778564 | C39: 14.57937255 | D39: -13.69094212
A40: 38 | B40: 2.387610417 | C40: 13.69094212 | D40: -14.57937255
A41: 39 | B41: 2.45044227 | C41: 12.74847979 | D41: -15.41026486
A42: 40 | B42: 2.513274123 | C42: 11.75570505 | D42: -16.18033989
A43: 41 | B43: 2.576105976 | C43: 10.7165359 | D43: -16.88655851
A44: 42 | B44: 2.638937829 | C44: 9.635073482 | D44: -17.5261336
A45: 43 | B45: 2.701769682 | C45: 8.515585831 | D45: -18.09654105
A46: 44 | B46: 2.764601535 | C46: 7.362491054 | D46: -18.59552972
A47: 45 | B47: 2.827433388 | C47: 6.180339887 | D47: -19.02113033
A48: 46 | B48: 2.890265241 | C48: 4.973797743 | D48: -19.37166322
A49: 47 | B49: 2.953097094 | C49: 3.747626292 | D49: -19.64574501
A50: 48 | B50: 3.015928947 | C50: 2.506664671 | D50: -19.84229403
A51: 49 | B51: 3.078760801 | C51: 1.255810391 | D51: -19.96053457
A52: 50 | B52: 3.141592654 | C52: 2.45029691e-15 | D52: -20
A53: 51 | B53: 3.204424507 | C53: -1.255810391 | D53: -19.96053457
A54: 52 | B54: 3.26725636 | C54: -2.506664671 | D54: -19.84229403
A55: 53 | B55: 3.330088213 | C55: -3.747626292 | D55: -19.64574501
A56: 54 | B56: 3.392920066 | C56: -4.973797743 | D56: -19.37166322
A57: 55 | B57: 3.455751919 | C57: -6.180339887 | D57: -19.02113033
A58: 56 | B58: 3.518583772 | C58: -7.362491054 | D58: -18.59552972
A59: 57 | B59: 3.581415625 | C59: -8.515585831 | D59: -18.09654105
A60: 58 | B60: 3.644247478 | C60: -9.635073482 | D60: -17.5261336
A61: 59 | B61: 3.707079331 | C61: -10.7165359 | D61: -16.88655851
A62: 60 | B62: 3.769911184 | C62: -11.75570505 | D62: -16.18033989
A63: 61 | B63: 3.832743037 | C63: -12.74847979 | D63: -15.41026486
A64: 62 | B64: 3.89557489 | C64: -13.69094212 | D64: -14.57937255
A65: 63 | B65: 3.958406744 | C65: -14.57937255 | D65: -13.69094212
A66: 64 | B66: 4.021238597 | C66: -15.41026486 | D66: -12.74847979
A67: 65 | B67: =A67*PI()/50 -> 4.08407045 | C67: =$F$2*SIN(B67) -> -16.18033989 | D67: =$F$2*COS(B67) -> -11.75570505
A68: =A67+1 -> 66 | B68: 4.146902303 | C68: -16.88655851 | D68: -10.7165359
A69: 67 | B69: 4.209734156 | C69: -17.5261336 | D69: -9.635073482
A70: 68 | B70: 4.272566009 | C70: -18.09654105 | D70: -8.515585831
A71: 69 | B71: 4.335397862 | C71: -18.59552972 | D71: -7.362491054
A72: 70 | B72: 4.398229715 | C72: -19.02113033 | D72: -6.180339887
A73: 71 | B73: 4.461061568 | C73: -19.37166322 | D73: -4.973797743
A74: 72 | B74: 4.523893421 | C74: -19.64574501 | D74: -3.747626292
A75: 73 | B75: 4.586725274 | C75: -19.84229403 | D75: -2.506664671
A76: 74 | B76: 4.649557127 | C76: -19.96053457 | D76: -1.255810391
A77: 75 | B77: 4.71238898 | C77: -20 | D77: -3.675445365e-15
A78: 76 | B78: 4.775220833 | C78: -19.96053457 | D78: 1.255810391
A79: 77 | B79: 4.838052687 | C79: -19.84229403 | D79: 2.506664671
A80: 78 | B80: 4.90088454 | C80: -19.64574501 | D80: 3.747626292
A81: 79 | B81: 4.963716393 | C81: -19.37166322 | D81: 4.973797743
A82: 80 | B82: 5.026548246 | C82: -19.02113033 | D82: 6.180339887
A83: 81 | B83: 5.089380099 | C83: -18.59552972 | D83: 7.362491054
A84: 82 | B84: 5.152211952 | C84: -18.09654105 | D84: 8.515585831
A85: 83 | B85: 5.215043805 | C85: -17.5261336 | D85: 9.635073482
A86: 84 | B86: 5.277875658 | C86: -16.88655851 | D86: 10.7165359
A87: 85 | B87: 5.340707511 | C87: -16.18033989 | D87: 11.75570505
A88: 86 | B88: 5.403539364 | C88: -15.41026486 | D88: 12.74847979
A89: 87 | B89: 5.466371217 | C89: -14.57937255 | D89: 13.69094212
A90: 88 | B90: 5.52920307 | C90: -13.69094212 | D90: 14.57937255
A91: 89 | B91: 5.592034923 | C91: -12.74847979 | D91: 15.41026486
A92: 90 | B92: 5.654866776 | C92: -11.75570505 | D92: 16.18033989
A93: 91 | B93: 5.71769863 | C93: -10.7165359 | D93: 16.88655851
A94: 92 | B94: 5.780530483 | C94: -9.635073482 | D94: 17.5261336
A95: 93 | B95: 5.843362336 | C95: -8.515585831 | D95: 18.09654105
A96: 94 | B96: 5.906194189 | C96: -7.362491054 | D96: 18.59552972
A97: 95 | B97: 5.969026042 | C97: -6.180339887 | D97: 19.02113033
A98: 96 | B98: 6.031857895 | C98: -4.973797743 | D98: 19.37166322
A99: 97 | B99: 6.094689748 | C99: -3.747626292 | D99: 19.64574501
A100: 98 | B100: 6.157521601 | C100: -2.506664671 | D100: 19.84229403
A101: =A100+1 -> 99 | B101: 6.220353454 | C101: -1.255810391 | D101: 19.96053457
A102: =A101+1 -> 100 | B102: 6.283185307 | C102: -4.90059382e-15 | D102: 20

Sheet Sheet3
A1: Optical Tweezers
A2: 50 mW HeNe laser with uniform intensity profile and circular cross section
H3: n1 | J3: n2
H4: 1.3 | J4: 1.35 | K4: Change the index of refraction.
H7: x0 | J7: z0
H8: 0 | J8: -10 | K8: Move the beam with respect to the sphere.
I11: R
I12: 20
K13: Change the radius of the sphere.
I16: qmax
I17: 65 | K17: Change the focusing angle.
I20: F (pN) | K20: Force on the sphere
I21: =Sheet2!I5*L25*L26*1000000000000 -> 3.421819145
L24: =6.672E-34*300000000/0.0000006328 -> 3.163084703e-19 | M24: Photon energy (J)
L25: =0.05/L24 -> 1.580735412e+17 | M25: Number of photons /s
L26: =H4*L24/300000000 -> 1.370670038e-27 | M26: Photon momentum (Js/m)
A28: Calculate the force due to the refraction of the light.
A29: The red lines represent the edges of the focused laser beam in the xz-plane.
A30: The blue circle represents the intersection of the sphere with the xz-plane.
A31: The green arrow points into the direction of the force on the sphere.
A32: Its length is proportional to the magnitude of the force.
